fUST/lending_fUST_20251010
["ID","MTS","AMOUNT","RATE_DAILY","PERIOD"]
[390552696,1760082633854,-500.0,0.00016438,2]
[390552697,1760082633864,-500.0,0.00016438,2]
[390552698,1760082633873,-392.35449881,0.00016438,2]
[390552699,1760082636889,-107.64550119,0.00016438,2]
[390552700,1760082636898,-500.0,0.00016438,2]
[390552701,1760082636908,-500.0,0.00016438,2]
[390552702,1760082636917,-500.0,0.00016438,2]
[390552703,1760082636926,-500.0,0.00016438,2]
[390552704,1760082636936,-500.0,0.00016438,2]
[390552705,1760082636945,-500.0,0.00016438,2]
[390552706,1760082636955,-500.0,0.00016438,2]
[390552707,1760082636964,-500.0,0.00016438,2]
[390552708,1760082636973,-501.06021249,0.00016438,2]
[390552709,1760082636982,-16.27731432,0.00016438,2]
[390552710,1760082639104,-500.0,0.00016437,2]
[390552711,1760082639128,-176.15787032,0.00016437,2]
[390552712,1760082639151,-241.65623134,0.00016437,2]
[390552713,1760082639171,-483.72268568,0.00016438,2]
[390552714,1760082639181,-501.60536764,0.00016438,2]
[390552715,1760082639191,-500.0,0.00016438,2]
[390552716,1760082639200,-500.0,0.00016438,2]
[390552717,1760082639209,-500.0,0.00016438,2]
[390552718,1760082639219,-500.0,0.00016438,2]
[390552719,1760082639229,-500.0,0.00016438,2]
[390552720,1760082639238,-1010.45,0.00016438,2]
[390552721,1760082639248,-938.39,0.00016438,2]
[390552722,1760082639258,-500.0,0.00016438,2]
[390552723,1760082639268,-8053.9741765,0.00016438,2]
[390552724,1760082639278,-500.0,0.00016438,2]
[390552725,1760082639288,-500.0,0.00016438,2]
[390552726,1760082639300,-345.96215428,0.00016438,2]
[390552727,1760082639310,-641.83,0.00016438,2]
[390552728,1760082639321,-500.0,0.00016438,2]
[390552729,1760082639331,-500.0,0.00016438,2]
[390552730,1760082639340,-500.0,0.00016438,2]
[390552731,1760082639350,-1039.02,0.00016438,2]
[390552732,1760082639360,-500.0,0.00016438,2]
[390552733,1760082639369,-501.40753468,0.00016438,2]
[390552734,1760082639380,-500.0,0.00016438,2]
[390552735,1760082639389,-500.0,0.00016438,2]
[390552736,1760082639399,-500.0,0.00016438,2]
[390552737,1760082639408,-500.0,0.00016438,2]
[390552738,1760082639419,-500.0,0.00016438,2]
[390552739,1760082639428,-503.19599363,0.00016438,2]
[390552740,1760082639439,-500.0,0.00016438,2]
[390552741,1760082639452,-500.0,0.00016438,2]
[390552742,1760082639462,-500.0,0.00016438,2]
[390552743,1760082639471,-500.0,0.00016438,2]
[390552744,1760082639480,-500.0,0.00016438,2]
[390552745,1760082639491,-500.0,0.00016438,2]
[390552746,1760082639501,-1806.92,0.00016438,2]
[390552747,1760082639511,-502.78593242,0.00016438,2]
[390552748,1760082639522,-500.0,0.00016438,2]
[390552749,1760082639531,-500.0,0.00016438,2]
[390552750,1760082639541,-500.0,0.00016438,2]
[390552751,1760082639550,-500.0,0.00016438,2]
[390552752,1760082639606,-500.0,0.00016438,2]
[390552753,1760082639616,-500.0,0.00016438,2]
[390552754,1760082639625,-500.0,0.00016438,2]
[390552755,1760082639634,-500.0,0.00016438,2]
[390552756,1760082639643,-1445.37,0.00016438,2]
[390552757,1760082639653,-500.0,0.00016438,2]
[390552758,1760082639661,-500.0,0.00016438,2]
[390552759,1760082639670,-500.0,0.00016438,2]
[390552760,1760082639680,-500.43630551,0.00016438,2]
[390552761,1760082639689,-500.0,0.00016438,2]
[390552762,1760082639698,-501.09545884,0.00016438,2]
[390552763,1760082639707,-500.0,0.00016438,2]
[390552764,1760082639716,-500.0,0.00016438,2]
[390552765,1760082639726,-566.29,0.00016438,2]
[390552766,1760082639735,-747.05,0.00016438,2]
[390552767,1760082639745,-500.0,0.00016438,2]
[390552768,1760082639754,-501.41943121,0.00016438,2]
[390552769,1760082639764,-500.0,0.00016438,2]
[390552770,1760082639774,-501.46008985,0.00016438,2]
[390552771,1760082639784,-500.0,0.00016438,2]
[390552772,1760082639793,-500.0,0.00016438,2]
[390552773,1760082639803,-500.0,0.00016438,2]
[390552774,1760082639812,-500.0,0.00016438,2]
[390552775,1760082639821,-500.0,0.00016438,2]
[390552776,1760082639830,-500.0,0.00016438,2]
[390552777,1760082639840,-501.66725245,0.00016438,2]
[390552778,1760082639849,-500.0,0.00016438,2]
[390552779,1760082639858,-500.0,0.00016438,2]
[390552780,1760082639867,-500.0,0.00016438,2]
[390552781,1760082639877,-500.89359788,0.00016438,2]
[390552782,1760082639887,-501.3236961,0.00016438,2]
[390552783,1760082639897,-469.30839582,0.00016438,2]
[390552784,1760082639907,-525.99772976,0.00016438,2]
[390552785,1760082639916,-500.0,0.00016438,2]
[390552786,1760082639925,-501.78675145,0.00016438,2]
[390552787,1760082639935,-1519.29,0.00016438,2]
[390552788,1760082639944,-500.0,0.00016438,2]
[390552789,1760082639953,-340.0008303,0.00016438,2]
[390552790,1760082639963,-220.45133857,0.00016438,2]
[390552791,1760082639972,-500.0,0.00016438,2]
[390552792,1760082639981,-369.60936673,0.00016438,2]
[390552793,1760082639991,-5616.46,0.00016438,2]
[390552794,1760082640000,-500.0,0.00016438,2]
[390552795,1760082640009,-776.54,0.00016438,2]
[390552796,1760082640019,-791.64,0.00016438,2]
[390552797,1760082640029,-500.0,0.00016438,2]
[390552798,1760082640038,-500.0,0.00016438,2]
[390552799,1760082640047,-500.0,0.00016438,2]
[390552800,1760082640056,-2144.57,0.00016438,2]
[390552801,1760082640065,-500.0,0.00016438,2]
[390552802,1760082640075,-500.0,0.00016438,2]
[390552803,1760082640084,-501.76680069,0.00016438,2]
[390552804,1760082640093,-500.0,0.00016438,2]
[390552805,1760082640102,-500.0,0.00016438,2]
[390552806,1760082640111,-500.0,0.00016438,2]
[390552807,1760082640120,-500.0,0.00016438,2]
[390552808,1760082640129,-2842.6,0.00016438,2]
[390552809,1760082640139,-500.0,0.00016438,2]
[390552810,1760082640148,-5591.99,0.00016438,2]
[390552811,1760082640158,-500.0,0.00016438,2]
[390552812,1760082640167,-864.2,0.00016438,2]
[390552813,1760082640176,-501.65952057,0.00016438,2]
[390552814,1760082640186,-501.09182636,0.00016438,2]
[390552816,1760082640195,-500.0,0.00016438,2]
[390552817,1760082640203,-860.68,0.00016438,2]
[390552819,1760082640213,-500.0,0.00016438,2]
[390552820,1760082640222,-500.0,0.00016438,2]
[390552821,1760082640232,-500.0,0.00016438,2]
[390552822,1760082640241,-500.0,0.00016438,2]
[390552823,1760082640250,-500.56236055,0.00016438,2]
[390552824,1760082640259,-500.3844994,0.00016438,2]
[390552825,1760082640269,-500.0,0.00016438,2]
[390552826,1760082640279,-244.73271052,0.00016438,2]
[390552827,1760082640289,-500.0,0.00016438,2]
[390552828,1760082640298,-500.0,0.00016438,2]
[390552829,1760082640308,-502.44828813,0.00016438,2]
[390552830,1760082640317,-3263.64,0.00016438,2]
[390552831,1760082640326,-500.0,0.00016438,2]
[390552832,1760082640335,-500.0,0.00016438,2]
[390552833,1760082640345,-5922.75,0.00016438,2]
[390552834,1760082640354,-500.0,0.00016438,2]
[390552835,1760082640363,-500.0,0.00016438,2]
[390552836,1760082640373,-269.3180671,0.00016438,2]
[390552837,1760082640382,-502.54654759,0.00016438,2]
[390552838,1760082640391,-926.29,0.00016438,2]
[390552839,1760082640400,-946.12,0.00016438,2]
[390552840,1760082640410,-5922.75,0.00016438,2]
[390552841,1760082640419,-5922.75,0.00016438,2]
[390552842,1760082640428,-5922.75,0.00016438,2]
[390552843,1760082640439,-5922.75,0.00016438,2]
[390552844,1760082640452,-5922.75,0.00016438,2]
[390552845,1760082640461,-5922.75,0.00016438,2]
[390552846,1760082640471,-5922.75,0.00016438,2]
[390552847,1760082640480,-5922.75,0.00016438,2]
[390552848,1760082640490,-5922.75,0.00016438,2]
[390552849,1760082640501,-500.0,0.00016438,2]
[390552850,1760082640511,-5922.75,0.00016438,2]
[390552851,1760082640524,-964.12,0.00016438,2]
[390552852,1760082640534,-5922.75,0.00016438,2]
[390552853,1760082640543,-5922.75,0.00016438,2]
[390552854,1760082640552,-500.0,0.00016438,2]
[390552855,1760082640561,-5922.75,0.00016438,2]
[390552856,1760082640571,-5922.75,0.00016438,2]
[390552857,1760082640580,-1064.23,0.00016438,2]
[390552858,1760082640591,-5922.75,0.00016438,2]
[390552859,1760082640600,-500.0,0.00016438,2]
[390552860,1760082640609,-5922.75,0.00016438,2]
[390552861,1760082640619,-502.06924811,0.00016438,2]
[390552862,1760082640629,-5922.75,0.00016438,2]
[390552863,1760082640638,-501.82525681,0.00016438,2]
[390552864,1760082640647,-500.0,0.00016438,2]
[390552865,1760082640657,-2438.53,0.00016438,2]
[390552866,1760082640666,-500.4640918,0.00016438,2]
[390552867,1760082640677,-500.0,0.00016438,2]
[390552868,1760082640686,-1251.07,0.00016438,2]
[390552869,1760082640695,-500.0,0.00016438,2]
[390552870,1760082640705,-500.0,0.00016438,2]
[390552871,1760082640717,-1423.15,0.00016438,2]
[390552872,1760082640732,-500.0,0.00016438,2]
[390552873,1760082640742,-500.0,0.00016438,2]
[390552874,1760082640753,-2083.23,0.00016438,2]
[390552875,1760082640762,-500.0,0.00016438,2]
[390552876,1760082640773,-500.0,0.00016438,2]
[390552877,1760082640782,-500.0,0.00016438,2]
[390552878,1760082640792,-500.41016111,0.00016438,2]
[390552879,1760082640802,-503.01189571,0.00016438,2]
[390552880,1760082640811,-500.0,0.00016438,2]
[390552881,1760082640824,-500.0,0.00016438,2]
[390552882,1760082640835,-500.0,0.00016438,2]
[390552883,1760082640845,-500.0,0.00016438,2]
[390552884,1760082640854,-500.0,0.00016438,2]
[390552885,1760082640863,-501.3140315,0.00016438,2]
[390552886,1760082640874,-500.0,0.00016438,2]
[390552887,1760082640883,-1350.6,0.00016438,2]
[390552888,1760082640892,-500.0,0.00016438,2]
[390552889,1760082640902,-500.0,0.00016438,2]
[390552890,1760082640911,-1350.41,0.00016438,2]
[390552891,1760082640920,-500.0,0.00016438,2]
[390552892,1760082640930,-500.0,0.00016438,2]
[390552893,1760082640939,-500.0,0.00016438,2]
[390552894,1760082640948,-754.23,0.00016438,2]
[390552895,1760082640957,-500.0,0.00016438,2]
[390552896,1760082640966,-500.0,0.00016438,2]
[390552897,1760082640975,-500.0,0.00016438,2]
[390552898,1760082640985,-641.79,0.00016438,2]
[390552899,1760082640994,-500.0,0.00016438,2]
[390552900,1760082641003,-501.00529747,0.00016438,2]
[390552901,1760082641012,-500.0,0.00016438,2]
[390552903,1760082641022,-500.0,0.00016438,2]
[390552904,1760082641032,-500.63790663,0.00016438,2]
[390552905,1760082641042,-214.40020945,0.00016438,2]
[390552906,1760082641052,-500.0,0.00016438,2]
[390552907,1760082641062,-664.23,0.00016438,2]
[390552908,1760082641071,-500.82531903,0.00016438,2]
[390552909,1760082641081,-500.0,0.00016438,2]
[390552910,1760082641091,-501.23739647,0.00016438,2]
[390552911,1760082641100,-500.0,0.00016438,2]
[390552912,1760082641109,-749.82,0.00016438,2]
[390552913,1760082641119,-500.0,0.00016438,2]
[390552914,1760082641129,-500.0,0.00016438,2]
[390552915,1760082641139,-970.64,0.00016438,2]
[390552916,1760082641148,-501.12408537,0.00016438,2]
[390552917,1760082641158,-500.0,0.00016438,2]
[390552918,1760082641168,-500.0,0.00016438,2]
[390552919,1760082641178,-500.0,0.00016438,2]
[390552920,1760082641188,-4270.81,0.00016438,2]
[390552921,1760082641197,-500.0,0.00016438,2]
[390552922,1760082641207,-578.1668779,0.00016438,2]
[390552923,1760082641218,-500.0,0.00016438,2]
[390552924,1760082641227,-500.0,0.00016438,2]
[390552925,1760082641237,-500.0,0.00016438,2]
[390552927,1760082641247,-500.0,0.00016438,2]
[390552929,1760082641257,-500.0,0.00016438,2]
[390552931,1760082641267,-422.54032191,0.00016438,2]
[390552933,1760082641276,-500.0,0.00016438,2]
[390552935,1760082641286,-500.0,0.00016438,2]
[390552936,1760082641295,-500.0,0.00016438,2]
[390552938,1760082641305,-613.59,0.00016438,2]
[390552940,1760082641315,-500.0,0.00016438,2]
[390552941,1760082641326,-500.0,0.00016438,2]
[390552942,1760082641336,-500.0,0.00016438,2]
[390552943,1760082641345,-500.0,0.00016438,2]
[390552944,1760082641355,-501.25766401,0.00016438,2]
[390552945,1760082641364,-500.0,0.00016438,2]
[390552946,1760082641374,-2148.53,0.00016438,2]
[390552947,1760082641383,-500.0,0.00016438,2]
[390552948,1760082641393,-648.81,0.00016438,2]
[390552949,1760082641402,-500.0,0.00016438,2]
[390552950,1760082641411,-500.0,0.00016438,2]
[390552951,1760082641420,-2090.99,0.00016438,2]
[390552952,1760082641430,-500.0,0.00016438,2]
[390552954,1760082641442,-500.0,0.00016438,2]
[390552955,1760082641452,-501.82473345,0.00016438,2]
[390552957,1760082641462,-501.08569497,0.00016438,2]
[390552959,1760082641471,-500.0,0.00016438,2]
[390552961,1760082641481,-959.4,0.00016438,2]
[390552962,1760082641491,-901.32,0.00016438,2]
[390552963,1760082641500,-500.0,0.00016438,2]
[390552965,1760082641509,-500.0,0.00016438,2]
[390552967,1760082641521,-500.0,0.00016438,2]
[390552969,1760082641531,-500.0,0.00016438,2]
[390552971,1760082641542,-500.0,0.00016438,2]
[390552973,1760082641552,-500.0,0.00016438,2]
[390552975,1760082641563,-3460.43,0.00016438,2]
[390552977,1760082641573,-1082.32,0.00016438,2]
[390552978,1760082641583,-500.0,0.00016438,2]
[390552979,1760082641593,-500.0,0.00016438,2]
[390552981,1760082641604,-613.07137954,0.00016605,2]
[390552983,1760082641614,-558.94592128,0.00016612,2]
[390552985,1760082641624,-5922.75,0.00016656,2]
[390552987,1760082641634,-1461.0,0.00016657,2]
[390552988,1760082641643,-412.83,0.00016667,2]
[390552989,1760082641652,-5922.75,0.0001671,2]
[390552990,1760082641662,-5922.75,0.0001671,2]
[390552991,1760082641671,-5922.75,0.0001671,2]
[390552992,1760082641680,-5922.75,0.0001671,2]
[390552993,1760082641689,-5922.87809889,0.0001671,2]
[390552994,1760082641699,-151.418394,0.00016711,2]
[390552995,1760082641709,-151.0,0.00016711,2]
[390552996,1760082641718,-151.555572,0.00016711,2]
[390552997,1760082641728,-153.062202,0.00016711,2]
[390552998,1760082641737,-151.0,0.00016711,2]
[390552999,1760082641747,-151.0,0.00016711,2]
[390553000,1760082641756,-151.0,0.00016711,2]
[390553001,1760082641765,-151.321248,0.00016711,2]
[390553002,1760082641775,-152.097801,0.00016711,2]
[390553003,1760082641784,-151.0,0.00016711,2]
[390553004,1760082641796,-233.625741,0.00016711,2]
[390553005,1760082641807,-151.0,0.00016711,2]
[390553006,1760082641817,-151.0,0.00016711,2]
[390553007,1760082641826,-500.0,0.00016712,2]
[390553008,1760082641836,-500.0,0.00016712,2]
[390553009,1760082641846,-1461.0,0.00016712,2]
[390553010,1760082641855,-500.00000001,0.00016712,2]
[390553011,1760082641865,-500.0,0.00016712,2]
[390553012,1760082641874,-322.11263561,0.00016712,2]
[390553013,1760082641884,-502.45846065,0.00016712,2]
[390553014,1760082641893,-500.0,0.00016712,2]
[390553015,1760082641902,-500.0,0.00016712,2]
[390553016,1760082641911,-500.0,0.00016712,2]
[390553017,1760082641921,-500.0,0.00016712,2]
[390553018,1760082641930,-510.22334251,0.00016712,2]
[390553019,1760082641941,-500.0,0.00016712,2]
[390553020,1760082641950,-500.0,0.00016712,2]
[390553021,1760082641960,-500.0,0.00016712,2]
[390553022,1760082641969,-501.44451044,0.00016712,2]
[390553023,1760082641978,-502.01975218,0.00016712,2]
[390553024,1760082641987,-500.0,0.00016712,2]
[390553025,1760082641997,-151.0,0.00016712,2]
[390553026,1760082642007,-151.0,0.00016712,2]
[390553027,1760082642017,-151.0,0.00016712,2]
[390553028,1760082642026,-151.0,0.00016712,2]
[390553029,1760082642035,-151.0,0.00016712,2]
[390553030,1760082642044,-151.824686,0.00016712,2]
[390553031,1760082642053,-152.994985,0.00016712,2]
[390553032,1760082642063,-500.0,0.00016712,2]
[390553033,1760082642072,-848.6,0.00016712,2]
[390553034,1760082642081,-500.0,0.00016712,2]
[390553035,1760082642091,-500.0,0.00016712,2]
[390553036,1760082642101,-500.0,0.00016712,2]
[390553037,1760082642110,-500.0,0.00016712,2]
[390553038,1760082642120,-875.94,0.00016712,2]
[390553039,1760082642129,-500.0,0.00016712,2]
[390553040,1760082642138,-500.0,0.00016712,2]
[390553041,1760082642147,-500.0,0.00016712,2]
[390553042,1760082642157,-500.0,0.00016712,2]
[390553043,1760082642166,-500.0,0.00016712,2]
[390553044,1760082642175,-1214.46,0.00016712,2]
[390553045,1760082642184,-500.0,0.00016712,2]
[390553046,1760082642194,-500.0,0.00016712,2]
[390553047,1760082642203,-500.0,0.00016712,2]
[390553048,1760082642213,-1111.51,0.00016712,2]
[390553049,1760082642223,-500.0,0.00016712,2]
[390553050,1760082642232,-500.0,0.00016712,2]
[390553051,1760082642241,-500.0,0.00016712,2]
[390553052,1760082642250,-151.0,0.00016712,2]
[390553053,1760082642260,-501.5660037,0.00016712,2]
[390553054,1760082642269,-500.0,0.00016712,2]
[390553055,1760082642278,-500.0,0.00016712,2]
[390553056,1760082642288,-152.24932598,0.00016712,2]
[390553057,1760082642297,-500.0,0.00016712,2]
[390553058,1760082642306,-500.0,0.00016712,2]
[390553059,1760082642316,-301.53012738,0.00016712,2]
[390553060,1760082642325,-500.0,0.00016712,2]
[390553061,1760082642335,-293.234204,0.00016712,2]
[390553062,1760082642344,-359.67318463,0.00016712,2]
[390553063,1760082642353,-489.84391691,0.00016712,2]
[390553064,1760082642363,-500.0,0.00016712,2]
[390553065,1760082642373,-500.0,0.00016712,2]
[390553066,1760082642382,-500.0,0.00016712,2]
[390553067,1760082642392,-500.0,0.00016712,2]
[390553068,1760082642402,-500.0,0.00016712,2]
[390553069,1760082642412,-500.0,0.00016712,2]
[390553070,1760082642421,-209.78067756,0.00016712,2]
[390553071,1760082642431,-500.0,0.00016712,2]
[390553072,1760082642444,-500.0,0.00016712,2]
[390553073,1760082642454,-501.55696603,0.00016712,2]
[390553074,1760082642464,-500.0,0.00016712,2]
[390553075,1760082642474,-500.0,0.00016712,2]
[390553076,1760082642483,-233.625741,0.00016712,2]
[390553077,1760082642494,-233.625741,0.00016712,2]
[390553078,1760082642504,-818.44,0.00016712,2]
[390553079,1760082642514,-500.0,0.00016712,2]
[390553080,1760082642526,-500.0,0.00016712,2]
[390553081,1760082642536,-500.0,0.00016712,2]
[390553082,1760082642546,-645.31,0.00016712,2]
[390553083,1760082642555,-500.0,0.00016712,2]
[390553084,1760082642566,-500.0,0.00016712,2]
[390553085,1760082642575,-500.0,0.00016712,2]
[390553086,1760082642585,-151.0,0.00016712,2]
[390553087,1760082642595,-500.0,0.00016712,2]
[390553088,1760082642605,-152.984232,0.00016712,2]
[390553089,1760082642615,-151.0,0.00016712,2]
[390553090,1760082642625,-615.6,0.00016712,2]
[390553091,1760082642634,-500.0,0.00016712,2]
[390553092,1760082642643,-154.020421,0.00016712,2]
[390553093,1760082642653,-151.0,0.00016712,2]
[390553094,1760082642663,-151.0,0.00016712,2]
[390553095,1760082642672,-151.0,0.00016712,2]
[390553096,1760082642682,-151.0,0.00016712,2]
[390553097,1760082642692,-500.0,0.00016712,2]
[390553098,1760082642701,-151.0,0.00016712,2]
[390553099,1760082642711,-151.0,0.00016712,2]
[390553100,1760082642721,-151.0,0.00016712,2]
[390553101,1760082642731,-151.0,0.00016712,2]
[390553102,1760082642740,-155.628286,0.00016712,2]
[390553103,1760082642750,-151.0,0.00016712,2]
[390553104,1760082642760,-151.0,0.00016712,2]
[390553105,1760082642770,-500.0,0.00016712,2]
[390553106,1760082642781,-500.0,0.00016712,2]
[390553107,1760082642790,-151.0,0.00016712,2]
[390553108,1760082642800,-151.0,0.00016712,2]
[390553109,1760082642810,-151.386704,0.00016712,2]
[390553110,1760082642820,-151.0,0.00016712,2]
[390553111,1760082642830,-500.0,0.00016712,2]
[390553112,1760082642840,-500.0,0.00016712,2]
[390553113,1760082642850,-500.0,0.00016712,2]
[390553114,1760082642860,-240.5526988,0.00016712,2]
[390553115,1760082642870,-979.59,0.00016712,2]
[390553116,1760082642880,-874.68,0.00016712,2]
[390553117,1760082642890,-500.0,0.00016712,2]
[390553118,1760082642899,-500.0,0.00016712,2]
[390553119,1760082642909,-300.0,0.00016712,2]
[390553120,1760082642920,-500.0,0.00016712,2]
[390553121,1760082642929,-500.0,0.00016712,2]
[390553122,1760082642939,-500.0,0.00016712,2]
[390553123,1760082642949,-151.0,0.00016712,2]
[390553124,1760082642958,-151.0,0.00016712,2]
[390553125,1760082642970,-399.44342891,0.00016712,2]
[390553126,1760082642984,-151.0,0.00016712,2]
[390553127,1760082642993,-500.0,0.00016712,2]
[390553128,1760082643002,-151.681857,0.00016712,2]
[390553129,1760082643012,-307.94323806,0.00016712,2]
[390553130,1760082643022,-972.03,0.00016712,2]
[390553131,1760082643032,-445.02304004,0.00016712,2]
[390553132,1760082643042,-151.0,0.00016712,2]
[390553133,1760082643052,-151.0,0.00016712,2]
[390553134,1760082643061,-500.0,0.00016712,2]
[390553135,1760082643071,-500.0,0.00016712,2]
[390553136,1760082643080,-877.09,0.00016712,2]
[390553137,1760082643090,-500.0,0.00016712,2]
[390553138,1760082643099,-151.0,0.00016712,2]
[390553139,1760082643109,-151.0,0.00016712,2]
[390553141,1760082643119,-151.0,0.00016712,2]
[390553143,1760082643128,-500.0,0.00016712,2]
[390553145,1760082643137,-151.0,0.00016712,2]
[390553146,1760082643147,-151.0,0.00016712,2]
[390553147,1760082643156,-279.947969,0.00016712,2]
[390553148,1760082643165,-583.71909316,0.00016712,2]
[390553149,1760082643175,-500.0,0.00016712,2]
[390553151,1760082643184,-500.0,0.00016712,2]
[390553153,1760082643194,-500.0,0.00016712,2]
[390553155,1760082643203,-500.0,0.00016712,2]
[390553158,1760082643212,-500.0,0.00016712,2]
[390553160,1760082643222,-501.64638071,0.00016712,2]
[390553162,1760082643232,-500.0,0.00016712,2]
[390553164,1760082643241,-500.0,0.00016712,2]
[390553166,1760082643250,-636.23,0.00016712,2]
[390553168,1760082643260,-151.0,0.00016712,2]
[390553170,1760082643269,-500.0,0.00016712,2]
[390553171,1760082643279,-151.0,0.00016712,2]
[390553173,1760082643289,-500.0,0.00016712,2]
[390553175,1760082643298,-500.0,0.00016712,2]
[390553177,1760082643307,-500.0,0.00016712,2]
[390553180,1760082643317,-937.69,0.00016712,2]
[390553182,1760082643327,-151.0,0.00016712,2]
[390553183,1760082643336,-500.0,0.00016712,2]
[390553184,1760082643345,-477.03086216,0.00016712,2]
[390553185,1760082643355,-500.0,0.00016712,2]
[390553186,1760082643364,-500.0,0.00016712,2]
[390553187,1760082643373,-500.0,0.00016712,2]
[390553188,1760082643383,-500.0,0.00016712,2]
[390553189,1760082643393,-500.0,0.00016712,2]
[390553190,1760082643402,-500.0,0.00016712,2]
[390553191,1760082643412,-151.0,0.00016712,2]
[390553192,1760082643421,-500.0,0.00016712,2]
[390553193,1760082643575,-151.0,0.00016712,2]
[390553194,1760082643584,-297.699372,0.00016712,2]
[390553195,1760082643593,-151.0,0.00016712,2]
[390553196,1760082643602,-151.0,0.00016712,2]
[390553197,1760082643611,-893.09,0.00016712,2]
[390553198,1760082643620,-500.0,0.00016712,2]
[390553199,1760082643629,-151.0,0.00016712,2]
[390553200,1760082643638,-500.0,0.00016712,2]
[390553201,1760082643647,-1196.48,0.00016712,2]
[390553202,1760082643656,-500.0,0.00016712,2]
[390553203,1760082643665,-151.0,0.00016712,2]
[390553204,1760082643673,-151.0,0.00016712,2]
[390553205,1760082643682,-151.0,0.00016712,2]
[390553207,1760082643691,-500.0,0.00016712,2]
[390553209,1760082643700,-151.0,0.00016712,2]
[390553211,1760082643709,-500.0,0.00016712,2]
[390553212,1760082643718,-500.0,0.00016712,2]
[390553214,1760082643726,-151.0,0.00016712,2]
[390553216,1760082643736,-7550.27,0.00016712,2]
[390553218,1760082643745,-500.0,0.00016712,2]
[390553219,1760082643754,-500.0,0.00016712,2]
[390553220,1760082643763,-500.0,0.00016712,2]
[390553221,1760082643771,-500.0,0.00016712,2]
[390553222,1760082643780,-500.0,0.00016712,2]
[390553223,1760082643789,-500.0,0.00016712,2]
[390553224,1760082643798,-500.0,0.00016712,2]
[390553225,1760082643807,-500.0,0.00016712,2]
[390553226,1760082643816,-500.0,0.00016712,2]
[390553227,1760082643824,-500.0,0.00016712,2]
[390553228,1760082643833,-500.0,0.00016712,2]
[390553229,1760082643843,-500.0,0.00016712,2]
[390553230,1760082643852,-500.0,0.00016712,2]
[390553231,1760082643861,-500.0,0.00016712,2]
[390553232,1760082643869,-500.0,0.00016712,2]
[390553233,1760082643879,-500.0,0.00016712,2]
[390553234,1760082643887,-500.0,0.00016712,2]
[390553235,1760082643896,-500.0,0.00016712,2]
[390553236,1760082643905,-414.2972915,0.00016712,2]
[390553237,1760082643914,-500.0,0.00016712,2]
[390553238,1760082643923,-500.60334351,0.00016712,2]
[390553239,1760082643931,-151.0,0.00016712,2]
[390553240,1760082643940,-151.0,0.00016712,2]
[390553241,1760082643950,-500.0,0.00016712,2]
[390553242,1760082643959,-151.0,0.00016712,2]
[390553243,1760082643969,-500.0,0.00016712,2]
[390553244,1760082643978,-261.392589,0.00016712,2]
[390553245,1760082643987,-502.30765809,0.00016712,2]
[390553246,1760082643996,-500.0,0.00016712,2]